[Event "*** Titled Tuesday Blitz"]
[Site "Chess.com"]
[Date "2021.04.06"]
[Round "1"]
[White "SirStrateg"]
[Black "Loy_Konstantin"]
[Result "1-0"]
[WhiteElo "2636"]
[BlackElo "2338"]
[TimeControl "180+1"]
[EndTime "10:06:59 PDT"]
[Termination "SirStrateg won on time"]

1. d4 {[%clk 0:03:00.9]} 1... Nf6 {[%clk 0:02:57.8]} 2. Nf3 {[%clk 0:03:01.1]}
2... g6 {[%clk 0:02:55.1]} 3. Bf4 {[%clk 0:03:00.8]} 3... Bg7 {[%clk 0:02:54.9]}
4. e3 {[%clk 0:03:01.5]} 4... O-O {[%clk 0:02:55.3]} 5. Be2 {[%clk 0:03:02.2]}
5... b6 {[%clk 0:02:55.9]} 6. a4 {[%clk 0:03:01.9]} 6... a6 {[%clk 0:02:53.9]}
7. c4 {[%clk 0:02:56.6]} 7... a5 {[%clk 0:02:50.1]} 8. Nc3 {[%clk 0:02:56.2]}
8... Bb7 {[%clk 0:02:49.9]} 9. O-O {[%clk 0:02:56]} 9... d6 {[%clk 0:02:49.5]}
10. Qb1 {[%clk 0:02:54.9]} 10... Nbd7 {[%clk 0:02:46.9]} 11. h3 {[%clk
0:02:52.6]} 11... Re8 {[%clk 0:02:43.8]} 12. Rd1 {[%clk 0:02:51.9]} 12... Qc8
{[%clk 0:02:37.2]} 13. b4 {[%clk 0:02:50.6]} 13... e5 {[%clk 0:02:32.9]} 14. Bg5
{[%clk 0:02:34.3]} 14... exd4 {[%clk 0:02:10.8]} 15. exd4 {[%clk 0:02:33.3]}
15... axb4 {[%clk 0:02:09.3]} 16. Qxb4 {[%clk 0:02:33.2]} 16... Ne4 {[%clk
0:02:08.5]} 17. Nxe4 {[%clk 0:02:24.1]} 17... Bxe4 {[%clk 0:02:08.1]} 18. Be3
{[%clk 0:02:23.8]} 18... Bb7 {[%clk 0:02:01.3]} 19. Ra2 {[%clk 0:02:06.7]} 19...
Ra5 {[%clk 0:01:56.8]} 20. d5 {[%clk 0:02:01.8]} 20... Nc5 {[%clk 0:01:26]} 21.
Nd4 {[%clk 0:01:50.2]} 21... Qa8 {[%clk 0:01:10.6]} 22. Nb5 {[%clk 0:01:43]}
22... Rxa4 {[%clk 0:00:35.5]} 23. Rxa4 {[%clk 0:01:42.2]} 23... Qxa4 {[%clk
0:00:36.4]} 24. Qxa4 {[%clk 0:01:42.1]} 24... Nxa4 {[%clk 0:00:37.3]} 25. Nxc7
{[%clk 0:01:41.6]} 25... Rc8 {[%clk 0:00:35.2]} 26. Nb5 {[%clk 0:01:39]} 26...
Bf8 {[%clk 0:00:20.6]} 27. Ra1 {[%clk 0:01:31.3]} 27... Nb2 {[%clk 0:00:19.7]}
28. Ra7 {[%clk 0:01:28.1]} 28... Ba8 {[%clk 0:00:16.8]} 29. Nc7 {[%clk
0:01:20.5]} 29... Bxd5 {[%clk 0:00:04.6]} 30. cxd5 {[%clk 0:01:16.6]} 30... Bg7
{[%clk 0:00:02.8]} 31. Bxb6 {[%clk 0:01:13.6]} 31... Rb8 {[%clk 0:00:02.4]} 32.
Ra8 {[%clk 0:01:13.8]} 32... Rxa8 {[%clk 0:00:02.3]} 33. Nxa8 {[%clk 0:01:14.2]}
33... Na4 {[%clk 0:00:03.2]} 34. Be3 {[%clk 0:01:12.9]} 34... Be5 {[%clk
0:00:03.2]} 35. Nb6 {[%clk 0:01:12.7]} 35... Nc3 {[%clk 0:00:03.2]} 36. Bc4
{[%clk 0:01:11.9]} 36... f5 {[%clk 0:00:02.6]} 37. f4 {[%clk 0:01:06.8]} 37...
Bf6 {[%clk 0:00:02.4]} 38. Nc8 {[%clk 0:01:05.5]} 38... Ne4 {[%clk 0:00:02.7]}
39. Bd3 {[%clk 0:01:05.1]} 39... Nc5 {[%clk 0:00:01.3]} 40. Bc2 {[%clk
0:01:00.3]} 40... Nb7 {[%clk 0:00:01.3]} 41. Ba4 {[%clk 0:00:59]} 41... Kf7
{[%clk 0:00:02.2]} 42. Bc6 {[%clk 0:00:59.3]} 42... Na5 {[%clk 0:00:02.5]} 43.
Nxd6+ {[%clk 0:00:59.3]} 43... Ke7 {[%clk 0:00:03.4]} 44. Nb7 {[%clk 0:00:58.1]}
44... Bc3 {[%clk 0:00:01.7]} 45. Nxa5 {[%clk 0:00:57.8]} 45... Bxa5 {[%clk
0:00:01.4]} 46. Bc5+ {[%clk 0:00:58.4]} 46... Kd8 {[%clk 0:00:01.9]} 47. Kf2
{[%clk 0:00:58.9]} 1-0

[Event "*** Titled Tuesday Blitz"]
[Site "Chess.com"]
[Date "2021.04.06"]
[Round "1"]
[White "x-4605984566"]
[Black "Smirnov_Pavel"]
[Result "0-1"]
[WhiteElo "2451"]
[BlackElo "2882"]
[TimeControl "180+1"]
[EndTime "10:07:01 PDT"]
[Termination "Smirnov_Pavel won by resignation"]

1. Nf3 {[%clk 0:03:00.8]} 1... Nf6 {[%clk 0:02:59.2]} 2. g3 {[%clk 0:03:00.1]}
2... e6 {[%clk 0:03:00.1]} 3. Bg2 {[%clk 0:03:00.3]} 3... d5 {[%clk 0:03:01]} 4.
O-O {[%clk 0:03:00.3]} 4... Be7 {[%clk 0:03:01.9]} 5. d3 {[%clk 0:02:58.2]} 5...
O-O {[%clk 0:03:02.8]} 6. Nbd2 {[%clk 0:02:58.5]} 6... c5 {[%clk 0:03:03.3]} 7.
e4 {[%clk 0:02:58.1]} 7... Nc6 {[%clk 0:03:04.2]} 8. Re1 {[%clk 0:02:58.3]} 8...
dxe4 {[%clk 0:03:04.4]} 9. dxe4 {[%clk 0:02:57.6]} 9... e5 {[%clk 0:03:04.6]}
10. Qe2 {[%clk 0:02:55.4]} 10... Qc7 {[%clk 0:03:04.2]} 11. c3 {[%clk
0:02:55.3]} 11... Rd8 {[%clk 0:03:04.6]} 12. Nh4 {[%clk 0:02:51]} 12... Be6
{[%clk 0:03:02.9]} 13. Nc4 {[%clk 0:02:46.7]} 13... h6 {[%clk 0:02:37.9]} 14.
Nf5 {[%clk 0:02:33.9]} 14... Bf8 {[%clk 0:02:36.5]} 15. Nce3 {[%clk 0:02:27]}
15... g6 {[%clk 0:02:35.3]} 16. Nd5 {[%clk 0:01:59.7]} 16... Nxd5 {[%clk
0:02:04.5]} 17. exd5 {[%clk 0:01:55.8]} 17... Bxf5 {[%clk 0:02:04.6]} 18. dxc6
{[%clk 0:01:50]} 18... bxc6 {[%clk 0:02:05.5]} 19. Qf3 {[%clk 0:00:41.2]} 19...
e4 {[%clk 0:02:03]} 20. Qf4 {[%clk 0:00:41.2]} 20... Qxf4 {[%clk 0:01:52.4]} 21.
Bxf4 {[%clk 0:00:42.1]} 21... Re8 {[%clk 0:01:52.5]} 22. Rad1 {[%clk 0:00:24.2]}
22... g5 {[%clk 0:01:52]} 23. Bd6 {[%clk 0:00:23.9]} 23... Bg4 {[%clk
0:01:47.6]} 24. Bxf8 {[%clk 0:00:07.7]} 24... Bxd1 {[%clk 0:01:46.8]} 25. Bxh6
{[%clk 0:00:08]} 25... Bf3 {[%clk 0:01:46.1]} 26. Bxg5 {[%clk 0:00:06]} 26...
Re6 {[%clk 0:01:35.3]} 27. h4 {[%clk 0:00:04.8]} 27... Rb8 {[%clk 0:01:31.1]}
28. Bh3 {[%clk 0:00:05.1]} 28... Ree8 {[%clk 0:00:56.7]} 29. Bd7 {[%clk
0:00:05.3]} 29... Rf8 {[%clk 0:00:30.9]} 30. Be7 {[%clk 0:00:05.4]} 30... Rxb2
{[%clk 0:00:30.3]} 31. Bxf8 {[%clk 0:00:05.6]} 31... Kxf8 {[%clk 0:00:31.2]} 32.
Bxc6 {[%clk 0:00:06.3]} 32... e3 {[%clk 0:00:31]} 33. Bxf3 {[%clk 0:00:02.9]}
33... exf2+ {[%clk 0:00:30.1]} 0-1

[Event "*** Titled Tuesday Blitz"]
[Site "Chess.com"]
[Date "2021.04.06"]
[Round "1"]
[White "tandaleo"]
[Black "moro182"]
[Result "0-1"]
[WhiteElo "2401"]
[BlackElo "2728"]
[TimeControl "180+1"]
[EndTime "10:07:01 PDT"]
[Termination "moro182 won by resignation"]

1. Nf3 {[%clk 0:02:59.4]} 1... g6 {[%clk 0:02:59.6]} 2. g3 {[%clk 0:02:59.5]}
2... Bg7 {[%clk 0:02:59.9]} 3. Bg2 {[%clk 0:02:59.9]} 3... d6 {[%clk 0:03:00.4]}
4. O-O {[%clk 0:02:59.6]} 4... Bd7 {[%clk 0:02:58.2]} 5. d4 {[%clk 0:02:58.5]}
5... Qc8 {[%clk 0:02:58.1]} 6. Re1 {[%clk 0:02:56.8]} 6... Bh3 {[%clk
0:02:56.8]} 7. Bh1 {[%clk 0:02:57.1]} 7... Nc6 {[%clk 0:02:56.6]} 8. e4 {[%clk
0:02:51.4]} 8... h5 {[%clk 0:02:56.1]} 9. c3 {[%clk 0:02:44.4]} 9... h4 {[%clk
0:02:56]} 10. Nxh4 {[%clk 0:02:40.8]} 10... Nf6 {[%clk 0:02:48.2]} 11. Nd2
{[%clk 0:02:20.1]} 11... Qd7 {[%clk 0:02:27.5]} 12. Nc4 {[%clk 0:02:01.5]} 12...
O-O-O {[%clk 0:02:10.4]} 13. e5 {[%clk 0:01:48.9]} 13... dxe5 {[%clk 0:02:03.1]}
14. Nxe5 {[%clk 0:01:49.8]} 14... Nxe5 {[%clk 0:02:02.4]} 15. Rxe5 {[%clk
0:01:50]} 15... c6 {[%clk 0:01:45.8]} 16. Bg5 {[%clk 0:01:23.2]} 16... Rde8
{[%clk 0:01:39.8]} 17. Qa4 {[%clk 0:01:13.1]} 17... Nh7 {[%clk 0:01:13.8]} 18.
Bf4 {[%clk 0:01:02.9]} 18... Bxe5 {[%clk 0:01:00.8]} 19. Bxe5 {[%clk 0:01:03.8]}
19... f6 {[%clk 0:01:00.7]} 20. Nxg6 {[%clk 0:00:34.6]} 20... fxe5 {[%clk
0:00:50.4]} 21. Nxh8 {[%clk 0:00:17]} 21... Rxh8 {[%clk 0:00:45.7]} 22. Qxa7
{[%clk 0:00:17.1]} 22... Qc7 {[%clk 0:00:36.9]} 23. dxe5 {[%clk 0:00:13.4]}
23... Rd8 {[%clk 0:00:32.7]} 24. Qe3 {[%clk 0:00:09.5]} 24... Qd7 {[%clk
0:00:30.4]} 25. Re1 {[%clk 0:00:08.6]} 25... Qd2 {[%clk 0:00:24.3]} 26. Bg2
{[%clk 0:00:03.9]} 26... Bxg2 {[%clk 0:00:22.4]} 27. Kxg2 {[%clk 0:00:03.5]}
27... Qxb2 {[%clk 0:00:21.1]} 28. Rf1 {[%clk 0:00:02.1]} 28... Qxa2 {[%clk
0:00:19.5]} 29. Qh6 {[%clk 0:00:02.3]} 29... Qd5+ {[%clk 0:00:19.2]} 30. f3
{[%clk 0:00:01.8]} 30... Qd2+ {[%clk 0:00:17]} 31. Rf2 {[%clk 0:00:02.1]} 31...
Qxh6 {[%clk 0:00:16.3]} 0-1

[Event "*** Titled Tuesday Blitz"]
[Site "Chess.com"]
[Date "2021.04.06"]
[Round "1"]
[White "LEGENYA1998"]
[Black "Malev212"]
[Result "0-1"]
[WhiteElo "2206"]
[BlackElo "2539"]
[TimeControl "180+1"]
[EndTime "10:07:01 PDT"]
[Termination "Malev212 won by resignation"]

1. e4 {[%clk 0:02:54.2]} 1... e5 {[%clk 0:02:57.6]} 2. Nf3 {[%clk 0:02:45]} 2...
Nc6 {[%clk 0:02:57.1]} 3. Bc4 {[%clk 0:02:40.2]} 3... Nf6 {[%clk 0:02:56.8]} 4.
Ng5 {[%clk 0:02:32.4]} 4... d5 {[%clk 0:02:55.8]} 5. exd5 {[%clk 0:02:30.1]}
5... Na5 {[%clk 0:02:55.5]} 6. Bb5+ {[%clk 0:02:28.6]} 6... c6 {[%clk
0:02:54.4]} 7. dxc6 {[%clk 0:02:28.2]} 7... bxc6 {[%clk 0:02:54.5]} 8. Qf3
{[%clk 0:02:22.9]} 8... Be7 {[%clk 0:02:45.8]} 9. Bd3 {[%clk 0:02:19.3]} 9...
O-O {[%clk 0:02:41.8]} 10. O-O {[%clk 0:02:17.2]} 10... Bb7 {[%clk 0:02:36.6]}
11. Nc3 {[%clk 0:02:15]} 11... c5 {[%clk 0:02:31.7]} 12. Qf5 {[%clk 0:02:12.5]}
12... g6 {[%clk 0:02:18.4]} 13. Qh3 {[%clk 0:02:10]} 13... h5 {[%clk 0:01:52.8]}
14. Re1 {[%clk 0:02:03.7]} 14... Ng4 {[%clk 0:01:47.8]} 15. Nf3 {[%clk
0:01:58.6]} 15... c4 {[%clk 0:01:44.7]} 16. Be4 {[%clk 0:01:58.7]} 16... Bc5
{[%clk 0:01:40.7]} 17. Rf1 {[%clk 0:01:51.6]} 17... f5 {[%clk 0:01:40.1]} 18.
Bxb7 {[%clk 0:01:45.9]} 18... Nxb7 {[%clk 0:01:40.5]} 19. b3 {[%clk 0:01:46.4]}
19... e4 {[%clk 0:01:38.9]} 20. Ne1 {[%clk 0:01:41.7]} 20... Nd6 {[%clk
0:01:26.8]} 21. Bb2 {[%clk 0:01:38.8]} 21... f4 {[%clk 0:01:14.5]} 22. Na4
{[%clk 0:01:32.9]} 22... Bb4 {[%clk 0:01:07.2]} 23. f3 {[%clk 0:01:19.6]} 23...
Qg5 {[%clk 0:00:58.3]} 24. fxg4 {[%clk 0:01:03.8]} 24... hxg4 {[%clk 0:00:57.2]}
25. Qh8+ {[%clk 0:01:03.7]} 25... Kf7 {[%clk 0:00:56]} 26. Qg7+ {[%clk
0:01:04.1]} 26... Ke6 {[%clk 0:00:52.8]} 27. a3 {[%clk 0:00:42.3]} 27... Bxd2
{[%clk 0:00:51.2]} 28. Rd1 {[%clk 0:00:41.9]} 28... Be3+ {[%clk 0:00:49.9]} 29.
Kh1 {[%clk 0:00:41.9]} 29... Rh8 {[%clk 0:00:47.4]} 30. Rxd6+ {[%clk 0:00:17.6]}
30... Kxd6 {[%clk 0:00:47]} 31. Qf6+ {[%clk 0:00:13]} 31... Qxf6 {[%clk
0:00:46.7]} 32. Bxf6 {[%clk 0:00:13.3]} 32... Rh5 {[%clk 0:00:45.9]} 33. Nc3
{[%clk 0:00:07.3]} 33... Re8 {[%clk 0:00:44.8]} 34. g3 {[%clk 0:00:04.2]} 34...
f3 {[%clk 0:00:42.9]} 35. Nd1 {[%clk 0:00:03.6]} 35... Bd2 {[%clk 0:00:41.2]}
36. Bd4 {[%clk 0:00:03.6]} 36... e3 {[%clk 0:00:40.2]} 37. Nxf3 {[%clk
0:00:04.1]} 37... gxf3 {[%clk 0:00:39.3]} 38. Rxf3 {[%clk 0:00:04.5]} 38... e2
{[%clk 0:00:38.9]} 39. Bf2 {[%clk 0:00:04.1]} 39... exd1=Q+ {[%clk 0:00:37.8]}
0-1

[Event "*** Titled Tuesday Blitz"]
[Site "Chess.com"]
[Date "2021.04.06"]
[Round "1"]
[White "DeTimmerman"]
[Black "Shuvalov"]
[Result "1-0"]
[WhiteElo "2833"]
[BlackElo "2435"]
[TimeControl "180+1"]
[EndTime "10:07:03 PDT"]
[Termination "DeTimmerman won by resignation"]

1. b4 {[%clk 0:02:39.6]} 1... d5 {[%clk 0:02:52.9]} 2. Bb2 {[%clk 0:02:38.5]}
2... Nf6 {[%clk 0:02:50.4]} 3. b5 {[%clk 0:02:38.2]} 3... c5 {[%clk 0:02:44]} 4.
a4 {[%clk 0:02:39.1]} 4... e6 {[%clk 0:02:38.4]} 5. e3 {[%clk 0:02:39.5]} 5...
Bd6 {[%clk 0:02:32.5]} 6. c4 {[%clk 0:02:40.4]} 6... b6 {[%clk 0:02:30.4]} 7.
Nf3 {[%clk 0:02:39.4]} 7... Bb7 {[%clk 0:02:30.2]} 8. Be2 {[%clk 0:02:37.9]}
8... Nbd7 {[%clk 0:02:30.1]} 9. O-O {[%clk 0:02:37.3]} 9... O-O {[%clk
0:02:29.8]} 10. cxd5 {[%clk 0:02:37.5]} 10... Nxd5 {[%clk 0:02:17.7]} 11. d4
{[%clk 0:02:38.4]} 11... Qe7 {[%clk 0:02:10.9]} 12. Nbd2 {[%clk 0:02:37.2]}
12... Rfd8 {[%clk 0:02:08.6]} 13. Nc4 {[%clk 0:02:34.2]} 13... Bc7 {[%clk
0:02:02.3]} 14. Qb3 {[%clk 0:02:34.7]} 14... cxd4 {[%clk 0:01:58.8]} 15. Bxd4
{[%clk 0:02:35.6]} 15... Nc5 {[%clk 0:01:56.9]} 16. Qb2 {[%clk 0:02:32.5]} 16...
f6 {[%clk 0:01:53.8]} 17. Rfc1 {[%clk 0:02:20]} 17... Rac8 {[%clk 0:01:52.9]}
18. a5 {[%clk 0:02:05.1]} 18... Nd7 {[%clk 0:01:32.4]} 19. axb6 {[%clk
0:02:00.4]} 19... axb6 {[%clk 0:01:30.9]} 20. Ra7 {[%clk 0:02:00]} 20... Rb8
{[%clk 0:01:25.3]} 21. g3 {[%clk 0:01:54.5]} 21... e5 {[%clk 0:01:20]} 22. e4
{[%clk 0:01:54.8]} 22... exd4 {[%clk 0:01:08.8]} 23. exd5 {[%clk 0:01:54.7]}
23... Nc5 {[%clk 0:01:02.4]} 24. Nxd4 {[%clk 0:01:50.1]} 24... Rxd5 {[%clk
0:00:55.7]} 25. Ne3 {[%clk 0:01:50.2]} 25... Rdd8 {[%clk 0:00:50]} 26. Rxb7
{[%clk 0:01:41.9]} 26... Rxb7 {[%clk 0:00:43.8]} 27. Bc4+ {[%clk 0:01:42.3]}
27... Kh8 {[%clk 0:00:42.4]} 28. Nc6 {[%clk 0:01:42.8]} 28... Qe8 {[%clk
0:00:36]} 29. Nxd8 {[%clk 0:01:42.9]} 29... Qxd8 {[%clk 0:00:36.9]} 30. Rd1
{[%clk 0:01:41.4]} 30... Qe8 {[%clk 0:00:36]} 31. Qd2 {[%clk 0:01:36.8]} 31...
Rb8 {[%clk 0:00:35.3]} 32. Re1 {[%clk 0:01:30.8]} 32... Rd8 {[%clk 0:00:34.6]}
33. Nd5 {[%clk 0:01:29.8]} 33... Qd7 {[%clk 0:00:31.4]} 34. Qe3 {[%clk
0:01:30.1]} 34... Rf8 {[%clk 0:00:15.3]} 35. Qe7 {[%clk 0:01:25.1]} 35... Qxe7
{[%clk 0:00:15.5]} 36. Rxe7 {[%clk 0:01:25.5]} 36... Bd8 {[%clk 0:00:16.4]} 37.
Ra7 {[%clk 0:01:20.5]} 37... h5 {[%clk 0:00:15.6]} 38. h4 {[%clk 0:01:20]} 38...
g5 {[%clk 0:00:15]} 39. Be2 {[%clk 0:01:15.7]} 39... gxh4 {[%clk 0:00:13.7]} 40.
Nf4 {[%clk 0:01:16]} 40... Rg8 {[%clk 0:00:10.9]} 41. Bxh5 {[%clk 0:01:13.9]}
41... hxg3 {[%clk 0:00:10.2]} 42. Ng6+ {[%clk 0:01:14.2]} 42... Rxg6 {[%clk
0:00:10.1]} 43. Bxg6 {[%clk 0:01:15.1]} 43... gxf2+ {[%clk 0:00:10.6]} 44. Kxf2
{[%clk 0:01:16]} 44... f5 {[%clk 0:00:08.4]} 45. Bxf5 {[%clk 0:01:15.2]} 45...
Bh4+ {[%clk 0:00:07.6]} 46. Kf3 {[%clk 0:01:14.9]} 46... Bf6 {[%clk 0:00:08.5]}
47. Ra8+ {[%clk 0:01:12.9]} 47... Kg7 {[%clk 0:00:08.3]} 48. Rb8 {[%clk
0:01:13.2]} 48... Na4 {[%clk 0:00:07.2]} 49. Bc2 {[%clk 0:01:13.7]} 49... Nc3
{[%clk 0:00:06.8]} 50. Rxb6 {[%clk 0:01:13.3]} 50... Bd4 {[%clk 0:00:06.8]} 51.
Rb7+ {[%clk 0:01:13.4]} 51... Kf6 {[%clk 0:00:06.7]} 52. Rd7 {[%clk 0:01:10.6]}
52... Nxb5 {[%clk 0:00:05.7]} 53. Ba4 {[%clk 0:01:10.2]} 53... Nc3 {[%clk
0:00:05.3]} 54. Rxd4 {[%clk 0:01:10]} 54... Nxa4 {[%clk 0:00:05.5]} 55. Rxa4
{[%clk 0:01:10.9]} 1-0

[Event "*** Titled Tuesday Blitz"]
[Site "Chess.com"]
[Date "2021.04.06"]
[Round "1"]
[White "1977Ivan"]
[Black "lolo9292"]
[Result "1-0"]
[WhiteElo "2753"]
[BlackElo "2409"]
[TimeControl "180+1"]
[EndTime "10:07:03 PDT"]
[Termination "1977Ivan won by resignation"]

1. Nf3 {[%clk 0:02:59.1]} 1... Nf6 {[%clk 0:02:57.9]} 2. c4 {[%clk 0:02:57.7]}
2... e6 {[%clk 0:02:56.9]} 3. g3 {[%clk 0:02:55.2]} 3... d5 {[%clk 0:02:57.8]}
4. Bg2 {[%clk 0:02:55.5]} 4... Be7 {[%clk 0:02:56.6]} 5. O-O {[%clk 0:02:54.5]}
5... O-O {[%clk 0:02:56.8]} 6. d3 {[%clk 0:02:54.8]} 6... c5 {[%clk 0:02:54.4]}
7. Ne5 {[%clk 0:02:53.5]} 7... Nbd7 {[%clk 0:02:53]} 8. Nxd7 {[%clk 0:02:46.7]}
8... Bxd7 {[%clk 0:02:53.9]} 9. e4 {[%clk 0:02:46.1]} 9... dxe4 {[%clk
0:02:52.8]} 10. dxe4 {[%clk 0:02:45.8]} 10... Bc6 {[%clk 0:02:52.1]} 11. Qe2
{[%clk 0:02:45.1]} 11... Nd7 {[%clk 0:02:50.6]} 12. Nc3 {[%clk 0:02:38.7]} 12...
Bf6 {[%clk 0:02:48.6]} 13. Bf4 {[%clk 0:02:15.4]} 13... Ne5 {[%clk 0:02:46.4]}
14. Rfd1 {[%clk 0:02:10.7]} 14... Qe7 {[%clk 0:02:45.5]} 15. Be3 {[%clk
0:01:40.4]} 15... Ng6 {[%clk 0:02:44.2]} 16. f4 {[%clk 0:01:38.6]} 16... Bd4
{[%clk 0:02:42]} 17. Bxd4 {[%clk 0:01:32.7]} 17... cxd4 {[%clk 0:02:42.9]} 18.
Rxd4 {[%clk 0:01:33]} 18... e5 {[%clk 0:02:38.8]} 19. fxe5 {[%clk 0:01:30.4]}
19... Nxe5 {[%clk 0:02:38.2]} 20. Rad1 {[%clk 0:01:29.7]} 20... Rad8 {[%clk
0:02:35.3]} 21. Nd5 {[%clk 0:01:20.8]} 21... Bxd5 {[%clk 0:02:32]} 22. exd5
{[%clk 0:01:21.7]} 22... Rfe8 {[%clk 0:02:31.7]} 23. d6 {[%clk 0:01:19.4]} 23...
Qf6 {[%clk 0:02:28.5]} 24. Qf2 {[%clk 0:01:18.4]} 24... Qg6 {[%clk 0:02:22.5]}
25. Be4 {[%clk 0:01:09.7]} 25... Qh6 {[%clk 0:02:20.7]} 26. Qf4 {[%clk
0:01:02.5]} 26... Qh5 {[%clk 0:02:06.9]} 27. Rf1 {[%clk 0:00:53.1]} 27... f6
{[%clk 0:02:02.9]} 28. Bd5+ {[%clk 0:00:49]} 28... Kh8 {[%clk 0:02:02.7]} 29. c5
{[%clk 0:00:48.8]} 29... Ng6 {[%clk 0:01:50.8]} 30. Qf2 {[%clk 0:00:46.3]} 30...
Ne5 {[%clk 0:01:49]} 31. h4 {[%clk 0:00:38.7]} 31... b6 {[%clk 0:01:46.9]} 32.
b4 {[%clk 0:00:38.1]} 32... bxc5 {[%clk 0:01:44.5]} 33. bxc5 {[%clk 0:00:39]}
33... Qh6 {[%clk 0:01:41.5]} 34. Rf4 {[%clk 0:00:38.1]} 34... Nd3 {[%clk
0:01:38.3]} 35. Qd4 {[%clk 0:00:35.7]} 35... Nxf4 {[%clk 0:01:35.9]} 36. Rxf4
{[%clk 0:00:35.6]} 36... Qg6 {[%clk 0:01:32.8]} 37. Kh2 {[%clk 0:00:27.7]} 37...
Qc2+ {[%clk 0:01:28.3]} 38. Kh3 {[%clk 0:00:27.3]} 38... Re2 {[%clk 0:01:25.2]}
39. Rxf6 {[%clk 0:00:26.5]} 39... Rh2+ {[%clk 0:01:25.1]} 40. Kg4 {[%clk
0:00:26]} 40... Qe2+ {[%clk 0:01:24.9]} 41. Bf3 {[%clk 0:00:25]} 41... Qe8
{[%clk 0:01:20.1]} 42. Rf5 {[%clk 0:00:23.3]} 42... Qg6+ {[%clk 0:01:18.8]} 43.
Rg5 {[%clk 0:00:23.2]} 43... h5+ {[%clk 0:01:16.9]} 44. Kf4 {[%clk 0:00:21.7]}
44... Rf8+ {[%clk 0:01:17]} 45. Ke3 {[%clk 0:00:20.6]} 45... Qe6+ {[%clk
0:01:16.7]} 46. Be4 {[%clk 0:00:20.5]} 46... Kg8 {[%clk 0:01:09.4]} 47. Qd5
{[%clk 0:00:19.7]} 47... Qxd5 {[%clk 0:01:07.2]} 48. Bxd5+ {[%clk 0:00:20.6]}
48... Kh7 {[%clk 0:01:07.5]} 49. d7 {[%clk 0:00:20.9]} 49... Rc2 {[%clk
0:00:59.3]} 50. Be4+ {[%clk 0:00:20.3]} 50... Kh6 {[%clk 0:00:58.7]} 51. Bxc2
{[%clk 0:00:20.7]} 51... Rf6 {[%clk 0:00:57.3]} 52. d8=Q {[%clk 0:00:19.6]} 1-0

[Event "*** Titled Tuesday Blitz"]
[Site "Chess.com"]
[Date "2021.04.06"]
[Round "1"]
[White "Sadykov_Ramil"]
[Black "Joseacorrea"]
[Result "1-0"]
[WhiteElo "2503"]
[BlackElo "2086"]
[TimeControl "180+1"]
[EndTime "10:07:03 PDT"]
[Termination "Sadykov_Ramil won by resignation"]

1. e4 {[%clk 0:02:58.8]} 1... c5 {[%clk 0:02:59.3]} 2. Nf3 {[%clk 0:02:52.2]}
2... Nc6 {[%clk 0:02:59.3]} 3. Bb5 {[%clk 0:02:49.9]} 3... Nd4 {[%clk
0:02:57.1]} 4. Nxd4 {[%clk 0:02:44.5]} 4... cxd4 {[%clk 0:02:58]} 5. O-O {[%clk
0:02:42.7]} 5... g6 {[%clk 0:02:57.2]} 6. d3 {[%clk 0:02:42]} 6... Bg7 {[%clk
0:02:57.6]} 7. Nd2 {[%clk 0:02:32.8]} 7... a6 {[%clk 0:02:57]} 8. Bc4 {[%clk
0:02:31.9]} 8... d6 {[%clk 0:02:57.3]} 9. Bb3 {[%clk 0:02:20.5]} 9... Nf6 {[%clk
0:02:55.3]} 10. h3 {[%clk 0:02:13.5]} 10... O-O {[%clk 0:02:53.9]} 11. f4 {[%clk
0:01:55.5]} 11... Qc7 {[%clk 0:02:41.1]} 12. Nf3 {[%clk 0:01:54.2]} 12... e5
{[%clk 0:02:40.1]} 13. Qe1 {[%clk 0:01:42.4]} 13... Be6 {[%clk 0:02:28.7]} 14.
fxe5 {[%clk 0:01:20.8]} 14... dxe5 {[%clk 0:02:24.9]} 15. Qh4 {[%clk 0:01:16.6]}
15... Bxb3 {[%clk 0:02:19.8]} 16. cxb3 {[%clk 0:01:16.5]} 16... Rfe8 {[%clk
0:02:11.2]} 17. Bg5 {[%clk 0:01:11.8]} 17... Nd7 {[%clk 0:01:59.2]} 18. Rac1
{[%clk 0:01:00.1]} 18... Qd6 {[%clk 0:01:55.5]} 19. Rc2 {[%clk 0:00:55.1]} 19...
Rac8 {[%clk 0:01:52]} 20. Rcf2 {[%clk 0:00:54.8]} 20... Nc5 {[%clk 0:01:39.9]}
21. Ne1 {[%clk 0:00:53.2]} 21... Rc7 {[%clk 0:01:27.9]} 22. Bf6 {[%clk
0:00:50.3]} 22... Re6 {[%clk 0:01:02.8]} 23. Bxg7 {[%clk 0:00:44.8]} 23... Kxg7
{[%clk 0:01:03.7]} 24. b4 {[%clk 0:00:42]} 24... Na4 {[%clk 0:00:52.3]} 25. Nf3
{[%clk 0:00:40.9]} 25... h6 {[%clk 0:00:38.4]} 26. a3 {[%clk 0:00:40]} 26... Nb6
{[%clk 0:00:37.8]} 27. Qg3 {[%clk 0:00:38.3]} 27... Rce7 {[%clk 0:00:36.4]} 28.
h4 {[%clk 0:00:38]} 28... Nd7 {[%clk 0:00:33.7]} 29. h5 {[%clk 0:00:37.4]} 29...
Nf8 {[%clk 0:00:29.9]} 30. Nh4 {[%clk 0:00:36.9]} 30... Kh7 {[%clk 0:00:22.4]}
31. Rxf7+ {[%clk 0:00:35.1]} 31... Rxf7 {[%clk 0:00:22]} 32. Rxf7+ {[%clk
0:00:36]} 32... Kg8 {[%clk 0:00:21.5]} 33. hxg6 {[%clk 0:00:33.7]} 33... Nxg6
{[%clk 0:00:18.8]} 34. Rxb7 {[%clk 0:00:33.6]} 34... Kf8 {[%clk 0:00:12.8]} 35.
Qf3+ {[%clk 0:00:26]} 35... Rf6 {[%clk 0:00:12.1]} 36. Nxg6+ {[%clk 0:00:25]}
1-0